Cogmind - Beta 16 @@@ ROGUE MODE // 2025.11.06 @ 08:21:23 Player: Lazz Result: Destroyed by G-47 Trooper with Particle Gun Performance ------------- Evolutions (2) 1000 Regions Visited (3) 600 Robots Destroyed (37) 185 Value Destroyed (1102) 1102 Prototype IDs (3) 60 Alien Tech Used (0) 0 Bonus (0) 0 TOTAL SCORE: 2947 Bonus ------- None Cogmind --------- Core Integrity 0/550 Matter 268/300 Energy 265/265 System Corruption 0% Temperature Cool (9) Movement Walking (260) Ox2 Location -8/Materials Parts ------- > --- POWER (1) -------- Improved Ion Engine > --- PROPULSION (3) --- Carbon-fiber Leg > --- UTILITY (4) ------ Large Storage Unit Melee Analysis Suite Core Analyzer Armor Integrity Analyzer > --- WEAPON (3) ------- Gauss Rifle Katana > --- INVENTORY (15) --- Light Ion Engine Nuclear Core Improved Heat Sink High-capacity Storage Unit Mini Grenade Launcher Mini Grenade Launcher Mining Claw Peak State ------------ > --- POWER ------------ Ion Engine > --- PROPULSION ------- Titanium Leg Improved Carbon-fiber Leg Improved Carbon-fiber Leg > --- UTILITY ---------- Large Storage Unit Core Analyzer Armor Integrity Analyzer > --- WEAPON ----------- Advanced Beam Cannon Gauss Rifle Katana > --- INVENTORY -------- Light Ion Engine Improved Ion Engine Nuclear Core High-capacity Storage Unit EM Shotgun Mini Grenade Launcher Mini Grenade Launcher Mining Claw [Rating: 32] Favorites ----------- Power Ion Engine Engine Ion Engine Propulsion Light Treads Treads Light Treads Leg Aluminum Leg Utility Small Storage Unit Device Improved Heat Sink Storage Small Storage Unit Processor Core Analyzer Protection Light Armor Plating Weapon Medium Laser Energy Gun Medium Laser Energy Cannon Advanced Beam Cannon Ballistic Gun Heavy Assault Rifle Slashing Weapon Katana Build | -11 -10 -9 -8 ------- Run | Yrd Mat Mat Mat Slots Evolved 4 | . . 2 2 Power . | . . . . Propulsion 1 | . . 1 . Utility 2 | . . . 2 Weapon 1 | . . 1 . Parts Attached 42 | 6 5 13 18 Power 4 | 1 . 1 2 Engine 4 | 1 . 1 2 Core . | . . . . Reactor . | . . . . Propulsion 15 | 2 1 4 8 Treads 4 | . . 4 . Leg 11 | 2 1 . 8 Wheel . | . . . . Hover . | . . . . Flight . | . . . . Utility 11 | 1 2 4 4 Device 2 | . 1 1 . Storage 4 | 1 . 3 . Processor 3 | . . . 3 Hackware . | . . . . Protection 2 | . 1 . 1 Artifact . | . . . . Weapon 12 | 2 2 4 4 Energy Gun 5 | 2 1 1 1 Energy Cannon 2 | . . 2 . Ballistic Gun 3 | . . 1 2 Ballistic Cannon . | . . . . Launcher . | . . . . Special Weapon . | . . . . Impact Weapon . | . . . . Slashing Weapon 2 | . 1 . 1 Piercing Weapon . | . . . . Special Melee Weapon . | . . . . Unidentified Prototypes 1 | . . 1 . Parts Lost 21 | . 1 5 15 Power 2 | . . . 2 Propulsion 10 | . 1 2 7 Utility 3 | . . 1 2 Weapon 6 | . . 2 4 Highest Loss Streak 6 | . 1 2 6 To Critical Strikes . | . . . . Average Backups 7 | 2 6 9 8 Power 2 | . 1 2 2 Propulsion . | 1 2 . . Utility 1 | . . 1 1 Weapon 3 | . 2 4 3 Tool/Special . | . . . . Unused Backups 7 | . . 2 5 Power 2 | . . . 2 Propulsion . | . . . . Utility 1 | . . . 1 Weapon 4 | . . 2 2 Tool/Special . | . . . . Average Slot Usage (%) 83 | . 97 86 73 Engine 10 | . 14 11 7 Treads 12 | . . 25 2 Leg 12 | . 26 4 14 Device 3 | . 3 3 2 Storage 11 | . 14 11 9 Processor 5 | . . . 15 Protection 2 | . 8 . 1 Energy Gun 16 | . 25 25 . Energy Cannon 4 | . . 2 8 Ballistic Gun 2 | . . 1 5 Slashing Weapon 3 | . 2 . 7 Peak Build Rating 32 | 6 9 16 32 Average Rating 13 | 4 7 10 22 On Entrance 7 | . 6 9 16 Avg Prop Armor Cover (%) 6 | . . 6 . Naked Turns . | . . . . Heaviest Build 55 | 14 17 55 42 Greatest Support 60 | 20 20 60 60 Greatest Overweight (x) 9 | 1 1 1 9 Average Overweight (x) . | . . . 1 Largest Inventory Capacity 20 | 8 8 20 15 Average Capacity 11 | 7 8 11 15 Most Carried 14 | 4 8 14 12 Average Carried 7 | 2 6 9 8 Final Capacity 15 | 8 8 15 15 Final Carried 9 | 4 7 9 7 Class Distribution -------------------- 36% | Mutant 35% | Gunner 20% | Scavenger-Mutant 5% | Scavenger-Tank Dominant Class ---------------- Mutant | -10/Materials Gunner | -9/Materials Scavenger-Mutant | -8/Materials Resources | -11 -10 -9 -8 ----------- Run | Yrd Mat Mat Mat Matter Collected 796 | 260 154 135 247 Remotely . | . . . . Salvage Created 1597 | 65 199 856 477 Parts 63 | 2 7 34 20 Haulers Intercepted 2 | . . 2 . Recyclers Shooed 2 | . 1 1 . Parts Field Recycled . | . . . . Retrieved Matter . | . . . . Parts Self-Destructed . | . . . . Prevented . | . . . . Parts Restored . | . . . . Kills | -11 -10 -9 -8 ------- Run | Yrd Mat Mat Mat Combat Hostiles Destroyed 26 | . 4 11 11 Melee 8 | . 2 . 6 Guns 14 | . 2 9 3 Cannons 3 | . . 1 2 Classes Destroyed 9 | 1 2 3 3 Worker 1 | . . 1 . Hauler 2 | . . 2 . Recycler 4 | 1 . 2 1 Watcher 4 | . 2 2 . Swarmer 4 | . . . 4 Grunt 13 | . 4 5 4 Sentry 6 | . . 6 . Specialist 2 | . . . 2 Hunter 1 | . . . 1 Best Kill Streak 4 | 1 3 3 4 Combat Bots Only 4 | . 2 2 4 Max Kills in Single Turn 1 | 1 1 1 1 Gunslinging . | . . . . Exploded . | . . . . Melee 1 | . 1 . 1 Uniques/NPCs Destroyed . | . . . . Combat | -11 -10 -9 -8 -------- Run | Yrd Mat Mat Mat Hostile Shots Fired 308 | . 31 80 197 Missed 65 | . 4 19 42 Hits 243 | . 27 61 155 Melee 11 | . . . 11 Projectile 232 | . 27 61 144 Critical Strikes 11 | . . 2 9 Damage Taken 3580 | . 421 840 2319 Core 902 | . 172 174 556 Absorbed by Shields . | . . . . Core Remaining (%) 62 | 100 31 56 . Volleys Fired 113 | 4 18 68 23 Largest 3 | 2 2 3 3 Hottest 159 | 100 100 159 159 Shots Fired 259 | 8 27 169 55 Gun 223 | 8 27 167 21 Cannon 36 | . . 2 34 Launcher . | . . . . Special . | . . . . Kinetic 22 | . . 1 21 Thermal 237 | 8 27 168 34 Explosive . | . . . . Electromagnetic . | . . . . Robot Hit Streak 24 | 2 8 24 8 Robot Miss Streak 5 | 1 1 4 5 Penetration Max . | . . . . Secondary Targets 2 | . . 2 . Max Gunslinging Chain 1 | . . 1 . Shots Hit Robots 188 | 5 26 109 48 Core Hits 65 | 2 10 35 18 Critical Kills . | . . . . Critical Parts Destroyed 2 | . . . 2 Critical Strikes 15 | . 3 7 5 Burn 10 | . 3 7 . Destroy 2 | . . . 2 Sever 3 | . . . 3 Melee Attacks 34 | . 8 3 23 Impact . | . . . . Slashing 34 | . 8 3 23 Piercing . | . . . . Sneak Attacks 1 | . . . 1 Combat Hostiles . | . . . . Follow-up Attacks . | . . . . Damage Inflicted 2979 | 62 371 1313 1233 Guns 1816 | 62 249 1269 236 Cannons 448 | . . 20 428 Explosions . | . . . . Melee 715 | . 122 24 569 Ramming . | . . . . Kinetic 236 | . . . 236 Thermal 2028 | 62 249 1289 428 Explosive . | . . . . Electromagnetic . | . . . . Impact . | . . . . Slashing 715 | . 122 24 569 Piercing . | . . . . Highest Corruption . | . . . . Average Corruption . | . . . . Corruption Purged . | . . . . Corruption Blocked . | . . . . Overload Shots . | . . . . Overflow Damage 7 | . . . 7 Projectiles 1 | . . . 1 Explosions . | . . . . Melee 6 | . . . 6 Knockbacks . | . . . . Impact . | . . . . Kinetic . | . . . . Secondary . | . . . . Self-Inflicted Damage . | . . . . Shots . | . . . . Rammed . | . . . . Targets Rammed . | . . . . Kicked . | . . . . Crushed . | . . . . Highest Temperature 545 | 156 545 404 480 Average Temperature 155 | 80 305 101 205 Received Heat Transfer 1413 | . 192 366 855 Effects 19 | . 16 . 3 Shutdowns 4 | . 3 . 1 Energy Bleed 1 | . 1 . . Interference 4 | . 3 . 1 Matter Decay 3 | . 2 . 1 Damage (minor) 2 | . 2 . . Damage (major) 3 | . 3 . . Damage (core) 2 | . 2 . . Siege Activations . | . . . . Martial Activations . | . . . . Shielding Activations . | . . . . Robots Disrupted . | . . . . Combat Hostiles . | . . . . Robots Corrupted . | . . . . Combat Hostiles . | . . . . Parts Fried . | . . . . Impact Corruptions . | . . . . Robots Melted 1 | . . 1 . Combat Hostiles 1 | . . 1 . Parts Melted 14 | 1 1 12 . Heat Transferred 5995 | 185 962 4071 777 Parts Sabotaged . | . . . . Parts Stolen . | . . . . Parts Stripped . | . . . . Power Chain Reactions . | . . . . Alert | -11 -10 -9 -8 ------- Run | Yrd Mat Mat Mat Maximum Alert Level . | . . . . Low Security (%) 100 | 100 100 100 100 Level 1 . | . . . . Level 2 . | . . . . Level 3 . | . . . . Level 4 . | . . . . Level 5 . | . . . . High Security . | . . . . Max Security . | . . . . Peak Influence 92 | 5 64 92 91 Initial 22 | . . 22 21 Average 32 | 1 28 41 28 Influence Increases 793 | 5 143 371 274 Destroy 0b10 Robot/C 520 | . 80 220 220 Destroy 0b10 Robot/NC 55 | 5 10 35 5 Destroy Leader 132 | . 14 88 30 Successful Hack 19 | . 9 10 . Destroy Structure 7 | . . 3 4 Lose Combat Pursuer 60 | . 30 15 15 Influence Decreases 793 | 5 89 374 325 Entered New Map 62 | . . 32 30 Time Decay 497 | 5 79 240 173 Lost Part 169 | . 10 37 122 Purge Threat 65 | . . 65 . Squads Dispatched 5 | . 1 2 2 Investigation 1 | . 1 . . Extermination . | . . . . Reinforcement 4 | . . 2 2 Assault . | . . . . Garrison . | . . . . Intercept . | . . . . Searches Triggered . | . . . . Construction Impeded . | . . . . Haulers Reinforced . | . . . . Active Scanning Responses . | . . . . Cargo Convoy Interrupts . | . . . . Stealth | -11 -10 -9 -8 --------- Run | Yrd Mat Mat Mat Distress Signals 6 | . 2 3 1 Communications Jammed . | . . . . Distress Signals . | . . . . Times Spotted 47 | . 10 17 20 Peak Tracking Total 5 | . 5 4 5 Tactical Retreats 4 | . 2 1 1 Traps | -11 -10 -9 -8 ------- Run | Yrd Mat Mat Mat Traps Triggered 1 | . 1 . . Indirectly . | . . . . Trap Hack Attempts . | . . . . Triggered . | . . . . Disarmed . | . . . . Reprogrammed . | . . . . Reused . | . . . . Traps Extracted . | . . . . Installed . | . . . . Triggered . | . . . . Machines | -11 -10 -9 -8 ---------- Run | Yrd Mat Mat Mat Machines Disabled . | . . . . Max in Single Turn . | . . . . Machines Repaired . | . . . . Machines Dismantled . | . . . . Machines Sabotaged . | . . . . Overloaded Fab Kills . | . . . . Hacking | -11 -10 -9 -8 --------- Run | Yrd Mat Mat Mat Machines Accessed 7 | . 3 4 . Terminals 7 | . 3 4 . Fabricators . | . . . . Repair Stations . | . . . . Recycling Units . | . . . . Scanalyzers . | . . . . Garrison Access . | . . . . Total Hacks 15 | . 6 9 . Successful 7 | . 2 5 . Failed 8 | . 4 4 . Catastrophic 3 | . 1 2 . Database Lockouts . | . . . . Manual 3 | . . 3 . Terminals 15 | . 6 9 . Fabricators . | . . . . Repair Stations . | . . . . Recycling Units . | . . . . Scanalyzers . | . . . . Garrison Access . | . . . . Terminal Hacks 7 | . 2 5 . Prototype ID Bank 1 | . . 1 . Terminal Index 1 | . . 1 . Alert Level 1 | . . 1 . Unreport Threat 1 | . . 1 . Dispatch Records 1 | . 1 . . Reinforcement Status 1 | . 1 . . Zone Layout 1 | . . 1 . Fabricator Hacks . | . . . . Repair Station Hacks . | . . . . Recycling Unit Hacks . | . . . . Scanalyzer . | . . . . Garrison Access Hacks . | . . . . Unauthorized Hacks . | . . . . Terminals . | . . . . Fabricators . | . . . . Repair Stations . | . . . . Recycling Units . | . . . . Scanalyzers . | . . . . Garrison Access . | . . . . Data Cores Recovered . | . . . . Used . | . . . . Hacking Detections 6 | . 3 3 . Full Trace Events . | . . . . Feedback Events . | . . . . Feedback Blocked . | . . . . Robot Schematics Acquired . | . . . . Robots Built . | . . . . Authchips . | . . . . Time . | . . . . Total Robot Build Rating . | . . . . Part Schematics Acquired . | . . . . Parts Built . | . . . . Authchips . | . . . . Time . | . . . . Total Part Build Rating . | . . . . Part Studies Acquired . | . . . . Parts Repaired . | . . . . Time . | . . . . Parts Recycled . | . . . . Recycled Matter . | . . . . Retrieved Matter . | . . . . Retrieved Components . | . . . . Parts Scanalyzed . | . . . . Part Schematics Acquired . | . . . . Parts Damaged . | . . . . Bothacking | -11 -10 -9 -8 ------------ Run | Yrd Mat Mat Mat Used RIF Installer . | . . . . Robots Hacked . | . . . . Non-combat . | . . . . Combat . | . . . . Robot Hacks Applied . | . . . . Relay Couplers Released . | . . . . Fabnet Peak Effective % . | . . . . Robots Rewired . | . . . . Allies Hacked . | . . . . Hacks Repelled . | . . . . Allies | -11 -10 -9 -8 -------- Run | Yrd Mat Mat Mat Total Allies . | . . . . Largest Group . | . . . . Highest-Rated Group . | . . . . Highest-Rated Ally . | . . . . Total Orders . | . . . . Ally Attacks . | . . . . Total Damage . | . . . . Kills . | . . . . Allies Corrupted . | . . . . Allies Melted . | . . . . Intel | -11 -10 -9 -8 ------- Run | Yrd Mat Mat Mat Active Infowar (turns) . | . . . . Robot Analysis Total . | . . . . Derelict Logs Recovered . | . . . . Drone Launches . | . . . . Drone Recoveries . | . . . . Exploration | -11 -10 -9 -8 ------------- Run | Yrd Mat Mat Mat Turns Passed 1460 | 86 239 631 504 Spaces Moved 563 | 51 125 230 157 Core 19 | 12 . . 7 Treads 208 | . . 196 12 Legs 336 | 39 125 34 138 Wheels . | . . . . Hover . | . . . . Flight . | . . . . Fastest Speed 50 | 50 120 120 123 Average Speed 157 | 114 123 156 199 Slowest Speed 500 | 120 190 190 500 Overloaded Moves . | . . . . Propulsion Burnouts . | . . . . Robots Hopped . | . . . . Potential Cave-ins . | . . . . Cave-ins Triggered . | . . . . Exploration Rate (%) 19 | 4 34 28 12 Regions Visited 3 Branch Regions . Pre-discovered Areas . | . . . . Known Exits Taken . | . . . . Unknown Exits Taken 3 | 1 1 1 . Scrap Searched . | . . . . Spaces Dug 5 | . . 2 3 Terrain Destroyed 5 | . . 2 3 Melee 5 | . . 2 3 Projectile . | . . . . AOE . | . . . . Terrain Rammed . | . . . . Walls Destroyed . | . . . . Machines Disabled . | . . . . Actions | -11 -10 -9 -8 --------- Run | Yrd Mat Mat Mat Total 864 | 70 165 359 270 Wait 52 | . 3 19 30 Move 560 | 50 124 229 157 Hop . | . . . . Pick Up 45 | 10 5 16 14 Fast Attach 3 | . 1 . 2 Attach 33 | 6 2 8 17 Detach 1 | . . . 1 Swap 11 | . 2 9 . Drop 13 | . 2 7 4 Fire 113 | 4 18 68 23 Melee 33 | . 8 3 22 Ram . | . . . . Kick . | . . . . Crush . | . . . . Escape Stasis . | . . . . Rewire . | . . . . Trap . | . . . . Miscellaneous . | . . . . Route ------- -11/Scrapyard -10/Materials -9/Materials -8/Materials History --------- Turn | Location | Event 11 | -11/Scrapyard | Discovered new exit (range 15) 87 | -11/Scrapyard | Entered Materials 212 | -10/Materials | Core integrity fell below 50% 303 | -10/Materials | Discovered new exit (range 16) 309 | -10/Materials | Build established: Mutant 326 | -10/Materials | Entered another Materials area 326 | -9/Materials | Evolved 2 slots: Propulsion x1, Weapon x1 627 | -9/Materials | Build established: Gunner 879 | -9/Materials | Discovered new exit (range 8) 957 | -9/Materials | Entered another Materials area 957 | -8/Materials | Evolved 2 slots: Utility x2 1142 | -8/Materials | Lost 6 parts (1p2n2u1w) 1208 | -8/Materials | Core integrity fell below 50% 1250 | -8/Materials | Core integrity fell below 20% 1265 | -8/Materials | Lost 6 parts (1p3n2w) 1331 | -8/Materials | Lost 3 parts (2n1w) 1461 | -8/Materials | Destroyed by G-47 Trooper with Particle Gun Last Messages --------------- K-01 Serf destroyed. Penetrated by Slug. EM Shotgun destroyed. Slug penetrates Wall. Penetrated by Slug. Aluminum Leg destroyed. Penetrated by Slug. Slug penetrates Wall. H-55 Commando destroyed. Acquired Carbon-fiber Leg. Acquired Gauss Rifle. Acquired 10 matter. O-24 Administrator: "IFF HANDSHAKE FAILED. SECURING TERMINAL." Slug penetrates K-01 Serf. K-01 Serf suffers critical hit (Destroy). Destroyed Wheel. Slug penetrates O-24 Administrator. ALERT: Hostiles spotted, dispatching reinforcements to Terminal M004. Map ----- +----------------------------------------------------+ | !%= #?????+###??????????????????????????????????? | | "%####### #??????????????????????????????????? | | %%= #??????????????????????????????????? | | [ " ??????????????????????????????????? | | #??????????????????????????????????? | | ####### #??????????????????????????????????? | | #????????+###??????????????????????????????????? | | #??????????????????????????????????????????????? | | #??????????????????????????????????????????????? | | #??????????????????????????????????????????????? | | !######?????????????????????????????????????????? | | %# #?????????????????????????????????????????? | | # ##########????????????????????????????????? | | # # #????????????????????????????????? | | # # [ #????????????????????????????????? | | + #!! #????????????????????????????????? | | # #! #????????????????????????????????? | | # # #????????????????????????????????? | | # # """ #????????????#???????????????????? | | # # """ #??????????? #???????????????????? | | ##"### """ #?????????? #???????????????????? | | !## #?# #????????? ????????????????????? | | ##"#######+#############+#############?????????? | | [ k g a r ????????? | | g k u ????????? | | g @ k ????????? | | ###########/#############+#######???????????????? | | ????????# #?????? ????????????????????? | | ????????# #??????? ???????????????????? | | ????????# #??????? #??????????????????? | | ????????# #???????? [#??????????????????? | | ?????????# #???????? #??????????????????? | | ?????????# #????????? #??????????????????? | | ?????????# #?????????##??????????????????? | | ?????????# #?????????????????????????????? | | ?????????#+#########?????????????????????????????? | | ?????????????????????????????????????????????????? | | ?????????????????????????????????????????????????? | | ?????????????????????????????????????????????????? | | ?????????????????????????????????????????????????? | | ?????????????????????????????????????????????????? | | ?????????????????????????????????????????????????? | | ?????????????????????????????????????????????????? | | ?????????????????????????????????????????????????? | | ?????????????????????????????????????????????????? | | ?????????????????????????????????????????????????? | | ?????????????????????????????????????????????????? | | ?????????????????????????????????????????????????? | | ?????????????????????????????????????????????????? | | ?????????????????????????????????????????????????? | +----------------------------------------------------+ Best States ------------- Heat Dissipation 42 Energy Generation 12 Energy Capacity 265 Matter Stores 300 Matter Capacity 300 Sight Range 16 Terrain Scan Density 10 Armor Coverage 150 Evasion (%) 55 Melee Accuracy 5 Core Analysis 6 Armor Integrity Analysis 30 Recoil Reduction 3 Item Schematics ----------------- None Robot Schematics ------------------ None Fabricated ------------ Nothing Repaired ---------- Nothing Studied --------- None Alien Tech Used ----------------- None Achievements -------------- None Challenges ------------ None Game ------ Seed AssaultTachyonMatter Manual? 0 Play Time 00:18:59 Cumulative 49.2 hours Start 2025.11.06 @ 08:01:55 End 2025.11.06 @ 08:21:23 Sessions 1 Manual Loads 0 Difficulty Rogue Special Mode None Game No. 66 Rogue 66 Adventurer 0 Explorer 0 Win Type - Total 0 Types 0/0/0/0/0/0/0/0/0/0 Lore% 32 Gallery% 38 Achievement% 27 Wizard Run 0 Options --------- Layout 2 ASCII 0 Keyboard 0 Movement Mouse Keybinds 0 Fullscreen 1 Font 16/SmallcapsGlow Map View 25x24 Zoom Use 99% Tactical HUD 0 Map Filters NONE Filters NONE Steam SD RUN: 8edc9a3e-c716-4f6e-849b-77609dde46c9